bitfinex-derivatives/quotes_BTCF0:USTF0_20241125
["timestamp","ask_amount","ask_price","bid_price","bid_amount"]
[1732560467972,0.052604,95064.0,95063.0,0.0015776]
[1732560468276,0.567444,95064.0,95063.0,0.0015776]
[1732560469177,0.57878279,95064.0,95063.0,0.0015776]
[1732560469474,0.57878279,95064.0,95048.0,0.052612]
[1732560469774,0.09561995,95057.0,95048.0,0.052612]
[1732560470369,0.09561995,95057.0,95044.0,0.36092525]
[1732560470370,0.052614,95046.0,95044.0,0.01182959]
[1732560470582,0.052614,95046.0,95044.0,0.00012525]
[1732560470782,0.052618,95037.0,95028.0,0.00157843]
[1732560470966,0.15408,95037.0,95028.0,0.00157843]
[1732560471277,0.052623,95029.0,95028.0,0.00157843]
[1732560473077,0.3931,95036.0,95020.0,8.725e-05]
[1732560473575,0.052622,95022.0,95020.0,8.725e-05]
[1732560473767,0.15412,95021.0,95020.0,8.725e-05]
[1732560475176,0.15412,95021.0,95020.0,0.36088725]
[1732560475481,0.15512,95021.0,95020.0,0.36088725]
[1732560475775,0.15512,95021.0,95020.0,8.725e-05]
[1732560476174,0.15612,95021.0,95020.0,8.725e-05]
[1732560477582,0.002,95021.0,95020.0,8.725e-05]
[1732560481275,0.054622,95021.0,95020.0,8.725e-05]
[1732560481468,0.052622,95020.0,95019.0,0.3608]
[1732560482077,0.052622,95020.0,95004.0,0.01152272]
[1732560482078,0.052631,95005.0,95004.0,0.01152272]
[1732560482302,0.052633,95001.0,94998.0,0.00157851]
[1732560482580,0.206793,95001.0,94998.0,0.00157851]
[1732560483271,0.207793,95001.0,94998.0,0.00157851]
[1732560483872,0.21935134,95001.0,94998.0,0.00157851]
[1732560484382,0.22035134,95001.0,94997.0,0.3608]
[1732560485180,0.22035134,95001.0,94992.0,8.854e-05]
[1732560487187,0.06619134,95001.0,94992.0,8.854e-05]
[1732560487385,0.22039134,95001.0,94992.0,8.854e-05]
[1732560488591,0.052637,94993.0,94992.0,8.854e-05]
[1732560489979,0.053637,94993.0,94992.0,8.854e-05]
[1732560490180,0.053637,94993.0,94987.0,0.3608]
[1732560490181,0.05264,94988.0,94987.0,0.3608]
[1732560490387,0.20684,94988.0,94987.0,0.3608]
[1732560492385,0.20784,94988.0,94987.0,0.3608]
[1732560493176,0.21950312,94988.0,94987.0,0.3608]
[1732560493381,0.06530312,94988.0,94987.0,0.3608]
[1732560493686,0.002,94988.0,94987.0,0.413441]
[1732560494494,0.052638,94992.0,94990.0,0.052639]
[1732560495975,0.052639,94991.0,94987.0,0.3608]
[1732560496182,0.052639,94991.0,94989.0,0.052639]
[1732560497186,0.052639,94991.0,94987.0,0.3608]
[1732560497187,0.001,94991.0,94987.0,0.3608]
[1732560497484,0.05264,94988.0,94987.0,0.3608]
[1732560498289,0.05264,94988.0,94987.0,0.30153755]
[1732560498490,0.05264,94988.0,94987.0,0.30253755]
[1732560498793,0.05364,94988.0,94987.0,0.30353755]
[1732560499186,0.20772,94988.0,94987.0,0.30353755]
[1732560499681,0.20772,94988.0,94987.0,0.002]
[1732560499891,0.22989749,94988.0,94987.0,0.002]
[1732560500491,0.22989749,94988.0,94987.0,0.001]
[1732560500788,0.20872,94988.0,94987.0,0.001]
[1732560501981,0.30246119,94988.0,94987.0,0.001]
[1732560502295,0.30245516,94988.0,94987.0,0.001]
[1732560502496,0.20872,94988.0,94987.0,0.001]
[1732560502684,0.30245641,94988.0,94987.0,0.001]
[1732560503085,0.20872,94988.0,94987.0,0.001]
[1732560503289,0.05464,94988.0,94987.0,0.001]
[1732560505190,0.05464,94988.0,94987.0,0.18945615]
[1732560505385,0.05464,94988.0,94987.0,0.001]
[1732560506189,0.002,94988.0,94987.0,0.053641]
[1732560506383,0.002,94988.0,94987.0,0.30492847]
[1732560506579,0.002,94988.0,94987.0,0.053641]
[1732560506794,0.002,94988.0,94987.0,0.001]
[1732560507097,0.05464,94988.0,94987.0,0.001]
[1732560507494,0.052642,94985.0,94984.0,0.25185567]
[1732560507686,0.052642,94985.0,94982.0,0.3608]
[1732560507687,0.052643,94983.0,94982.0,0.61265567]
[1732560507996,0.052643,94983.0,94982.0,0.66529867]
[1732560508182,0.052643,94983.0,94982.0,0.413443]
[1732560508891,0.052643,94983.0,94982.0,0.3608]
[1732560509095,0.052643,94983.0,94982.0,0.413443]
[1732560509393,0.053643,94983.0,94982.0,0.413443]
[1732560509889,0.054643,94983.0,94982.0,0.3608]
[1732560510391,0.054643,94983.0,94982.0,0.61306808]
[1732560510588,0.054643,94983.0,94982.0,0.3608]
[1732560510892,0.06597429,94983.0,94982.0,0.3608]
[1732560511092,0.31584,94982.0,94974.0,0.25226808]
[1732560511293,0.31584,94982.0,94965.0,0.25226808]
[1732560511294,0.052652,94966.0,94965.0,0.25226808]
[1732560511490,0.15412,94966.0,94961.0,0.25384771]
[1732560511689,0.052654,94962.0,94961.0,0.00157963]
[1732560511888,0.09373299,94964.0,94954.0,0.20384771]
[1732560512085,0.05266,94953.0,94951.0,0.032]
[1732560512313,0.09373299,94964.0,94951.0,0.032]
[1732560512593,0.05266,94953.0,94951.0,0.08466]
[1732560512894,0.09373299,94965.0,94951.0,0.032]
[1732560513093,0.05266,94952.0,94951.0,0.032]
[1732560513795,0.15412,94957.0,94950.0,8.818e-05]
[1732560513989,0.45453299,94953.0,94930.0,0.31384395]
[1732560514189,0.45453299,94953.0,94927.0,0.37661274]
[1732560514190,0.09421445,94937.0,94925.0,0.3608]
[1732560514394,0.052674,94926.0,94925.0,0.3608]
[1732560514600,0.45668484,94939.0,94925.0,0.3608]
[1732560514601,0.09421445,94938.0,94925.0,0.3608]
[1732560514905,0.052663,94947.0,94934.0,0.3608]
[1732560515194,0.052663,94947.0,94939.0,0.052667]
[1732560515195,0.052668,94940.0,94939.0,0.052667]
[1732560515701,0.05274354,94940.0,94939.0,0.052667]
[1732560516291,0.052669,94936.0,94935.0,0.03022017]
[1732560516493,0.052669,94936.0,94935.0,0.08288917]
[1732560517093,0.052669,94936.0,94935.0,0.03022017]
[1732560517297,0.052669,94936.0,94935.0,0.00012017]
[1732560517689,0.053669,94936.0,94935.0,0.00012017]
[1732560518287,0.001,94936.0,94935.0,0.05278917]
[1732560518588,0.002,94936.0,94935.0,0.05278917]
[1732560519095,7.554e-05,94940.0,94935.0,0.36878917]
[1732560519298,7.554e-05,94940.0,94939.0,0.052667]
[1732560520306,0.00107554,94940.0,94939.0,0.052667]
[1732560520798,0.00207554,94940.0,94939.0,0.522827]
[1732560520999,0.3634,94964.0,94939.0,0.47016]
[1732560521000,0.11529556,94960.0,94939.0,0.47016]
[1732560521191,0.51756,94964.0,94962.0,0.052654]
[1732560521192,0.052654,94963.0,94962.0,0.052654]
[1732560521688,0.3725196,94964.0,94955.0,0.3608]
[1732560521889,0.052657,94958.0,94957.0,0.052657]
[1732560522795,0.052657,94958.0,94955.0,0.3608]
[1732560522796,0.09432494,94963.0,94962.0,0.052654]
[1732560522999,0.00011049,94963.0,94962.0,0.052654]
[1732560523198,0.00011049,94963.0,94962.0,0.055654]
[1732560523199,0.00111049,94963.0,94962.0,0.055654]
[1732560523999,0.00111049,94963.0,94962.0,0.371574]
[1732560524190,0.00111049,94963.0,94962.0,0.055654]
[1732560524501,0.05476449,94963.0,94962.0,0.057654]
[1732560525189,0.00211049,94963.0,94962.0,0.057654]
[1732560525596,0.05476449,94963.0,94962.0,0.005]
[1732560526704,0.18025498,94963.0,94962.0,0.005]
[1732560526897,0.05476449,94963.0,94962.0,0.005]
[1732560527294,0.05370537,94963.0,94962.0,0.005]
[1732560527495,0.14764663,94963.0,94962.0,0.005]
[1732560527797,0.05370537,94963.0,94962.0,0.005]
[1732560528306,0.05381989,94963.0,94962.0,0.005]
[1732560528603,0.05381989,94963.0,94962.0,0.057654]
[1732560528900,0.00116589,94963.0,94962.0,0.057654]
[1732560529100,0.05381989,94963.0,94962.0,0.057654]
[1732560529509,0.05381989,94963.0,94962.0,0.005]
[1732560530701,0.14776115,94963.0,94962.0,0.005]
[1732560531496,0.05381989,94963.0,94962.0,0.005]
[1732560531696,0.17931038,94963.0,94962.0,0.005]
[1732560531905,0.05381989,94963.0,94962.0,0.005]
[1732560532202,0.20785989,94963.0,94962.0,0.005]
[1732560532404,0.25908693,94963.0,94962.0,0.005]
[1732560532614,0.20785989,94963.0,94962.0,0.005]
[1732560533605,0.12645319,94963.0,94962.0,0.057654]
[1732560533909,0.05381989,94963.0,94962.0,0.057654]
[1732560534103,0.00116589,94963.0,94962.0,0.057654]
[1732560535408,0.00116589,94963.0,94962.0,0.418454]
[1732560535601,0.12651309,94963.0,94962.0,0.418454]
[1732560535912,0.00116589,94963.0,94962.0,0.418454]
[1732560536406,0.12651309,94963.0,94962.0,0.418454]
[1732560536602,0.05381989,94963.0,94962.0,0.418454]
[1732560536908,0.00116589,94963.0,94962.0,0.418454]
[1732560538006,0.04627145,94982.0,94981.0,0.052644]
[1732560538196,0.00056001,94986.0,94985.0,0.052642]
[1732560538398,0.052636,94995.0,94981.0,0.51572]
[1732560538605,0.01176779,94999.0,94996.0,0.052635]
[1732560538810,0.052636,94997.0,94990.0,0.3608]
[1732560539007,0.052636,94997.0,94996.0,0.052635]
[1732560539201,0.05276985,94997.0,94996.0,0.052635]
[1732560539706,0.05276985,94997.0,94990.0,0.3608]
[1732560539707,0.052638,94994.0,94993.0,0.052637]
[1732560539897,0.052638,94991.0,94990.0,0.3608]
[1732560540103,0.052638,94991.0,94990.0,0.3628]
[1732560540407,0.052638,94991.0,94990.0,0.415439]
[1732560540596,0.052638,94991.0,94990.0,0.3608]
[1732560540800,0.052638,94991.0,94981.0,0.36168]
[1732560540801,0.052645,94978.0,94976.0,0.3608]
[1732560541005,0.052645,94978.0,94973.0,0.052648]
[1732560541208,0.052645,94978.0,94968.0,0.3608]
[1732560541601,0.052645,94978.0,94968.0,0.37207398]
[1732560541798,0.052645,94978.0,94977.0,0.05422535]
[1732560542303,0.24976492,94983.0,94982.0,0.052643]
[1732560542304,0.115643,94983.0,94982.0,0.052643]
[1732560543008,0.052645,94978.0,94977.0,0.06322535]
[1732560543307,0.064,94983.0,94982.0,0.009]
[1732560543508,0.001,94983.0,94982.0,0.061643]
[1732560544606,0.002,94983.0,94982.0,0.070643]
[1732560545111,0.002,94983.0,94982.0,0.224643]
[1732560546997,0.002,94983.0,94982.0,0.540483]
[1732560547198,0.00013385,94997.0,94982.0,0.540483]
[1732560547199,0.052636,94996.0,94994.0,0.052637]
[1732560547507,0.052642,94985.0,94984.0,0.052642]
[1732560547708,0.052642,94985.0,94984.0,0.206642]
[1732560548214,0.052643,94983.0,94982.0,0.018]
[1732560548507,0.052643,94983.0,94982.0,0.009]
[1732560549603,0.052646,94978.0,94977.0,0.00157935]
[1732560550503,0.10385828,94978.0,94977.0,0.00157935]
[1732560551410,0.11553152,94978.0,94977.0,0.01057935]
[1732560551607,0.05264,94969.0,94968.0,0.3608]
[1732560551803,0.10385642,94969.0,94968.0,0.3608]
[1732560552213,0.05264,94969.0,94968.0,0.3608]
[1732560552808,0.05364,94969.0,94968.0,0.3788]
[1732560554519,0.10485666,94969.0,94968.0,0.3788]
[1732560554718,0.21042499,94969.0,94968.0,0.3788]
[1732560555020,0.15780886,94969.0,94968.0,0.431441]
[1732560555208,0.001,94969.0,94968.0,0.792241]
[1732560555408,0.053641,94969.0,94968.0,0.792241]
[1732560555614,0.001,94969.0,94968.0,0.792241]
[1732560558613,0.001,94969.0,94968.0,0.946121]
[1732560558817,0.0318,94992.0,94968.0,0.946121]
[1732560558818,0.15680886,95001.0,94969.0,0.05264]
[1732560559021,0.11801551,95014.0,94996.0,0.052626]
[1732560559022,0.01168662,95000.0,94996.0,0.052626]
[1732560559216,0.18900886,95012.0,94996.0,0.052626]
[1732560559516,0.00157936,95016.0,94998.0,0.052625]
[1732560559817,0.00157936,95016.0,94996.0,0.36853075]
[1732560559818,0.01294358,95016.0,95009.0,0.052618]
[1732560560017,0.00157936,95016.0,95009.0,0.052618]
[1732560560213,0.00157936,95016.0,95008.0,0.15388]
[1732560560418,0.00157936,95016.0,95015.0,0.052615]
[1732560560916,0.052615,95015.0,95014.0,0.3608]
[1732560561922,0.00257936,95016.0,95015.0,0.061615]
[1732560562116,0.001,95016.0,95015.0,0.061615]
[1732560562328,0.001,95016.0,95015.0,0.009]
[1732560562510,0.052615,95015.0,95014.0,0.3698]
[1732560562716,0.001,95015.0,95014.0,0.585296]
[1732560563113,0.001,95015.0,95014.0,0.58758144]
[1732560563323,0.001,95015.0,95014.0,0.52368]
[1732560563530,0.053615,95016.0,95015.0,0.009]
[1732560564223,0.001,95016.0,95015.0,0.009]
[1732560564721,0.053615,95016.0,95015.0,0.009]
[1732560564923,0.21042386,95016.0,95015.0,0.009]
[1732560565117,0.053615,95016.0,95015.0,0.009]
[1732560565315,0.053615,95016.0,95015.0,0.018]
[1732560565316,0.21019771,95016.0,95015.0,0.018]
[1732560565516,0.053615,95016.0,95015.0,0.018]
[1732560565715,0.053615,95016.0,95015.0,0.009]
[1732560565716,0.052615,95016.0,95015.0,0.009]
[1732560566522,0.052615,95016.0,95015.0,0.018]
[1732560566712,8.082e-05,95018.0,95016.0,0.052615]
[1732560566914,8.082e-05,95018.0,95016.0,0.368335]
[1732560567124,8.082e-05,95018.0,95017.0,0.31572]
[1732560567822,0.00138,95026.0,95017.0,0.31572]
[1732560567823,0.00138,95026.0,95025.0,0.05261]
[1732560568124,0.00138,95026.0,95025.0,0.56725]
[1732560568814,0.00138,95026.0,95025.0,0.41341]
[1732560569019,0.00138,95026.0,95025.0,0.57625]
[1732560569225,0.00138,95026.0,95025.0,0.3698]
[1732560569424,0.053989,95026.0,95025.0,0.52364]
[1732560569823,0.00138,95026.0,95025.0,0.52364]
[1732560570023,0.00238,95026.0,95025.0,0.53264]
[1732560570418,0.00238,95026.0,95025.0,0.5440739]
[1732560571923,0.00238,95026.0,95025.0,0.5757739]
[1732560572420,0.00138,95026.0,95025.0,0.5667739]
[1732560572731,0.00238,95026.0,95025.0,0.5757739]
[1732560573228,0.00138,95026.0,95025.0,0.3812339]
[1732560573420,0.03398,95026.0,95025.0,0.018]
[1732560574025,0.0326,95026.0,95025.0,0.018]
[1732560574331,0.001,95026.0,95025.0,0.018]
[1732560574519,0.001,95026.0,95025.0,0.17184]
[1732560574916,0.001,95026.0,95025.0,0.018]
[1732560575120,0.001,95026.0,95025.0,0.17184]
[1732560575527,0.001,95026.0,95025.0,0.018]
[1732560575717,0.001,95026.0,95025.0,0.17184]
[1732560577617,0.001,95026.0,95025.0,0.018]
[1732560577821,0.001,95026.0,95025.0,0.17184]
[1732560578029,0.001,95026.0,95025.0,0.018]
[1732560578230,0.001,95026.0,95025.0,0.17184]
[1732560579437,0.053609,95026.0,95025.0,0.018]
[1732560579643,0.053609,95026.0,95025.0,0.02949275]
[1732560579936,0.053609,95026.0,95025.0,0.1718]
[1732560580135,0.053609,95026.0,95025.0,0.018]
[1732560582036,0.053609,95026.0,95025.0,0.1718]
[1732560584639,0.053609,95026.0,95025.0,0.22441]
[1732560584640,0.001,95026.0,95025.0,0.22441]
[1732560585339,0.001,95026.0,95025.0,0.22437]
[1732560586137,0.053609,95026.0,95025.0,0.22437]
[1732560586838,0.053609,95026.0,95025.0,0.018]
[1732560588937,0.052622,95003.0,95002.0,0.3608]
[1732560589831,0.20929102,95003.0,95002.0,0.3608]
[1732560590141,0.052622,95003.0,95002.0,0.3608]
[1732560590534,0.052622,95003.0,95002.0,0.3698]
[1732560591038,0.052622,95003.0,95002.0,0.018]
[1732560591039,0.053622,95003.0,95002.0,0.018]
[1732560591434,0.06521034,95003.0,95002.0,0.018]
[1732560591629,0.2217297,95003.0,95002.0,0.018]
[1732560592038,0.2548297,95003.0,95002.0,0.018]
[1732560592336,0.25480787,95003.0,95002.0,0.018]
[1732560592539,0.09831034,95003.0,95002.0,0.018]
[1732560592837,0.052625,94998.0,94997.0,0.00157861]
[1732560593043,0.052625,94998.0,94982.0,0.64223238]
[1732560593044,0.052633,94984.0,94983.0,0.052633]
[1732560594034,0.052633,94984.0,94983.0,0.05276635]
[1732560594234,0.052633,94984.0,94983.0,0.00013335]
[1732560594739,0.053633,94984.0,94983.0,0.01813335]
[1732560595844,0.053633,94984.0,94983.0,0.00913335]
[1732560596045,0.053633,94984.0,94983.0,0.01813335]
[1732560596244,0.053633,94984.0,94983.0,0.07076635]
[1732560596746,0.001,94984.0,94983.0,0.07076635]
[1732560597345,0.001,94984.0,94983.0,0.07405841]
[1732560597742,0.001,94984.0,94983.0,0.22456635]
[1732560598055,0.001,94984.0,94983.0,0.53569817]
[1732560598344,0.0026,95009.0,94994.0,0.09588484]
[1732560598544,0.052613,95019.0,95004.0,0.3608]
[1732560598846,0.052621,95005.0,95004.0,0.3608]
[1732560599043,0.052621,95005.0,95004.0,0.5146]
[1732560599944,0.052621,95005.0,95004.0,0.5236]
[1732560600140,0.052621,95005.0,95004.0,0.3698]
[1732560600752,0.05362,95009.0,95008.0,0.052619]
[1732560601053,0.05262,95009.0,95008.0,0.052619]
[1732560601237,0.001,95019.0,95004.0,0.3718]
[1732560601444,0.052621,95005.0,95004.0,0.3718]
[1732560601643,0.053621,95005.0,95004.0,0.5256]
[1732560601842,0.053621,95005.0,95004.0,0.3698]
[1732560602250,0.052624,95000.0,94999.0,0.3608]
[1732560603249,0.002,95005.0,95003.0,0.052621]
[1732560603456,0.001,95005.0,95004.0,0.052621]
[1732560604151,0.052621,95005.0,94999.0,0.88728]
[1732560604338,0.052621,95005.0,94999.0,0.8864]
[1732560604545,0.14582187,95017.0,94999.0,0.8864]
[1732560604744,0.052618,95011.0,95010.0,0.3608]
[1732560604945,0.085913,95020.0,95010.0,0.3608]
[1732560604946,0.15805765,95020.0,95010.0,0.3608]
[1732560605142,0.12475765,95028.0,95019.0,0.3608]
[1732560605348,0.12633658,95030.0,95027.0,0.3608]
[1732560605558,0.00157893,95030.0,95029.0,0.052608]
[1732560605741,0.01168393,95031.0,95030.0,0.052607]
[1732560606442,0.052603,95038.0,95037.0,0.052603]
[1732560606650,0.052603,95038.0,95037.0,0.387803]
[1732560606845,0.0301,95049.0,95027.0,0.3608]
[1732560606846,0.052608,95028.0,95027.0,0.3608]
[1732560607053,0.052608,95028.0,95000.0,0.43173944]
[1732560607054,0.052618,95011.0,95010.0,0.009]
[1732560607455,0.5146,95021.0,95000.0,0.00157896]
[1732560607456,0.12475765,95012.0,95000.0,0.00157896]
[1732560607656,0.052623,95004.0,95003.0,0.052622]
[1732560607861,0.052623,95001.0,95000.0,0.00157896]
[1732560608043,0.052623,95001.0,95000.0,0.05420296]
[1732560608245,0.002,95011.0,95000.0,0.31737896]
[1732560608466,0.05262,95007.0,95006.0,0.41342]
[1732560609457,0.05262,95007.0,95006.0,0.3608]
[1732560609653,0.05362,95007.0,95006.0,0.009]
[1732560610150,0.001,95007.0,95006.0,0.06162]
[1732560610352,0.053619,95007.0,95006.0,0.009]
[1732560610551,0.053619,95007.0,95006.0,0.012]
[1732560610552,0.054619,95007.0,95006.0,0.012]
[1732560611063,0.054619,95007.0,95006.0,0.005]
[1732560611244,0.054619,95007.0,95006.0,0.002]
[1732560611245,0.062619,95007.0,95006.0,0.002]
[1732560611444,0.095119,95007.0,95000.0,0.00157896]
[1732560611660,0.052623,95001.0,95000.0,0.00157896]
[1732560611956,0.052623,95001.0,95000.0,0.05420196]
[1732560612748,0.001,95001.0,95000.0,0.37200196]
[1732560613050,0.001,95001.0,95000.0,0.88660196]
[1732560613446,0.002,95001.0,95000.0,0.88960196]
[1732560613648,0.12692843,95001.0,95000.0,0.88960196]
[1732560613848,0.12692843,95001.0,95000.0,0.90099896]
[1732560614448,0.002,95001.0,95000.0,0.90099896]
[1732560614656,0.12492843,95007.0,95006.0,0.05262]
[1732560614955,0.12492843,95008.0,95007.0,0.052619]
[1732560615148,0.12492843,95014.0,95007.0,0.61576]
[1732560615353,0.0015791,95031.0,95016.0,0.052614]
[1732560615354,0.12492843,95017.0,95016.0,0.052614]
[1732560615549,0.1889752,95031.0,95016.0,0.15376]
[1732560615550,0.15615891,95026.0,95016.0,0.15376]
[1732560615856,0.15615891,95028.0,95027.0,0.052608]
[1732560616060,0.1873961,95037.0,95029.0,0.052607]
[1732560616252,0.1873961,95037.0,95027.0,0.867168]
[1732560616253,0.16564493,95041.0,95036.0,0.3608]
[1732560616449,0.00013581,95044.0,95043.0,0.052599]
[1732560616851,0.00013581,95044.0,95043.0,0.368239]
[1732560617649,0.00113581,95044.0,95043.0,0.377239]
[1732560617854,0.052591,95058.0,95043.0,0.32464]
[1732560618068,0.052591,95058.0,95057.0,0.3608]
[1732560618365,0.052596,95049.0,95048.0,0.3608]
[1732560618758,0.052596,95049.0,95048.0,0.413397]
[1732560618953,9.153e-05,95049.0,95048.0,0.413397]
[1732560619255,9.153e-05,95049.0,95048.0,0.729037]
[1732560619455,0.001,95058.0,95057.0,0.052592]
[1732560619767,0.052579,95081.0,95077.0,0.05258]
[1732560619963,0.00157792,95095.0,95078.0,0.15376]
[1732560620152,0.052573,95091.0,95078.0,0.15376]
[1732560620354,7.742e-05,95089.0,95078.0,0.15376]
[1732560620560,7.742e-05,95089.0,95088.0,0.052575]
[1732560620867,0.00157792,95095.0,95094.0,0.052571]
[1732560621066,0.00157792,95095.0,95094.0,0.899771]
[1732560621258,0.00157792,95095.0,95094.0,1.215251]
[1732560621453,0.0319,95115.0,95098.0,0.052568]
[1732560621854,0.052567,95102.0,95098.0,0.052568]
[1732560622060,0.052567,95102.0,95094.0,1.0018]
[1732560622061,0.001,95095.0,95094.0,0.37068]
[1732560622260,0.001,95095.0,95094.0,0.009]
[1732560622261,0.053571,95095.0,95094.0,0.009]
[1732560622866,0.053571,95095.0,95094.0,0.018]
[1732560623871,0.001,95095.0,95094.0,0.018]
[1732560624167,0.052571,95096.0,95094.0,0.009]
[1732560624878,0.052569,95098.0,95094.0,0.018]
[1732560625071,0.052565,95105.0,95097.0,0.3608]
[1732560625277,8.822e-05,95106.0,95099.0,0.052568]
[1732560626473,8.822e-05,95106.0,95099.0,0.368008]
[1732560627176,8.822e-05,95106.0,95099.0,0.855248]
[1732560627471,8.822e-05,95106.0,95099.0,0.856248]
[1732560627874,8.822e-05,95106.0,95105.0,0.052565]
[1732560628062,8.822e-05,95106.0,95105.0,0.567045]
[1732560628267,8.822e-05,95106.0,95105.0,0.882485]
[1732560628662,0.0326,95129.0,95105.0,0.882485]
[1732560628868,0.0324,95130.0,95122.0,0.7216]
[1732560629074,0.052548,95137.0,95123.0,0.15368]
[1732560629275,0.052548,95137.0,95136.0,0.3608]
[1732560629778,0.05268405,95137.0,95136.0,0.51444]
[1732560630264,0.05268405,95137.0,95136.0,0.3608]
[1732560630969,0.05268405,95137.0,95136.0,0.3618]
[1732560631165,0.05268405,95137.0,95136.0,0.3628]
[1732560631367,0.00013605,95137.0,95136.0,0.3628]
[1732560632170,0.0314,95154.0,95136.0,0.67825403]
[1732560632469,0.0314,95154.0,95153.0,0.413339]
[1732560632675,0.0314,95154.0,95153.0,0.566939]
[1732560633066,0.0314,95154.0,95153.0,0.3608]
[1732560633271,0.03149441,95154.0,95153.0,0.3608]
[1732560633473,0.34677441,95154.0,95153.0,0.3608]
[1732560634073,0.03149441,95154.0,95153.0,0.3618]
[1732560635965,0.03149441,95154.0,95153.0,0.3628]
[1732560639876,0.03149441,95154.0,95153.0,0.002]
[1732560640174,9.441e-05,95154.0,95153.0,0.054539]
[1732560640371,9.441e-05,95154.0,95153.0,0.415339]
[1732560640580,0.031,95173.0,95172.0,0.052528]
[1732560640776,0.031,95173.0,95172.0,0.566888]
[1732560641879,0.031,95173.0,95172.0,0.567888]
[1732560642080,0.3608,95193.0,95172.0,0.51536]
[1732560642282,8.885e-05,95182.0,95180.0,0.14366411]
[1732560642589,8.885e-05,95182.0,95181.0,0.052528]
[1732560643784,8.885e-05,95182.0,95181.0,0.061528]
[1732560643972,8.885e-05,95182.0,95172.0,0.3618]
[1732560643973,0.052533,95173.0,95172.0,0.3618]
[1732560644174,0.052533,95173.0,95172.0,0.51536]
[1732560644679,0.052533,95173.0,95172.0,0.15352]
[1732560644977,0.052541,95160.0,95152.0,0.00088]
[1732560645181,0.3608,95165.0,95132.0,0.48932]
[1732560645487,0.052553,95137.0,95132.0,0.00088]
[1732560645676,0.052553,95137.0,95131.0,0.3608]
[1732560645992,0.29718411,95150.0,95131.0,0.3608]
[1732560645993,0.05255,95142.0,95131.0,0.3608]
[1732560646282,0.0315,95146.0,95140.0,0.3608]
[1732560646483,0.052546,95151.0,95150.0,0.052544]
[1732560647589,0.05255,95141.0,95140.0,0.3608]
[1732560647887,0.052553,95137.0,95136.0,0.15465403]
[1732560648288,0.052553,95137.0,95136.0,0.00013403]
[1732560648781,0.007,95151.0,95136.0,0.00013403]
[1732560649089,0.052547,95147.0,95146.0,0.052547]
[1732560649482,0.052541,95159.0,95157.0,0.052542]
[1732560649682,0.052539,95163.0,95162.0,0.052537]
[1732560650079,0.052541,95159.0,95158.0,0.15352]
[1732560650987,0.0633,95177.0,95158.0,0.15352]
[1732560651179,0.052536,95167.0,95165.0,0.052537]
[1732560651386,0.052537,95166.0,95165.0,0.052537]
[1732560652181,0.052537,95166.0,95165.0,0.053537]
[1732560652788,0.007,95167.0,95166.0,0.052537]
[1732560652982,0.0026,95192.0,95181.0,0.052528]
[1732560653179,0.052524,95189.0,95181.0,0.566848]
[1732560653384,0.052522,95192.0,95181.0,0.566848]
[1732560653583,0.05252,95197.0,95181.0,0.566848]
[1732560653782,0.05252,95197.0,95181.0,0.927648]
[1732560654191,0.15642956,95198.0,95181.0,1.242848]
[1732560654494,0.15642956,95198.0,95181.0,1.243848]
[1732560654692,0.15642956,95198.0,95181.0,1.24713291]
[1732560655497,0.00708885,95182.0,95181.0,1.24813292]
[1732560655891,0.15642956,95198.0,95197.0,0.05252]
[1732560656086,0.15642956,95198.0,95197.0,0.56684]
[1732560656880,0.15653486,95198.0,95197.0,0.56784]
[1732560657080,0.0001053,95198.0,95197.0,0.56784]
[1732560657287,0.0001053,95198.0,95197.0,0.51532]
[1732560657488,0.0001053,95198.0,95197.0,0.56884]
[1732560657697,0.0001053,95198.0,95197.0,0.51632]
[1732560659487,0.0001053,95198.0,95197.0,0.56884]
[1732560660189,0.0001053,95198.0,95197.0,0.41532]
[1732560660382,0.0001053,95198.0,95197.0,0.5688]
[1732560660584,0.0526243,95198.0,95197.0,0.41532]
[1732560660796,0.0526243,95198.0,95197.0,0.002]
[1732560661001,0.0526243,95198.0,95167.0,0.37525582]
[1732560661002,0.052526,95185.0,95178.0,0.18762791]
[1732560661183,0.052526,95185.0,95174.0,0.61097055]
[1732560661184,0.05253,95178.0,95174.0,0.00088]
[1732560661382,0.05253,95178.0,95173.0,0.18762791]
[1732560661590,0.05253,95178.0,95172.0,0.18762791]
[1732560661787,0.05253,95178.0,95175.0,0.052531]
[1732560662098,0.05253,95178.0,95172.0,0.3608]
[1732560662491,0.05253,95178.0,95177.0,0.01057601]
[1732560662994,0.05253,95178.0,95177.0,0.01957601]
[1732560663494,0.05253,95178.0,95177.0,0.01057601]
[1732560663694,0.05253,95178.0,95177.0,0.01157601]
[1732560664386,0.052542,95157.0,95156.0,0.052542]
[1732560664795,0.052543,95154.0,95145.0,0.51428]
[1732560664995,0.052543,95154.0,95153.0,0.052544]
[1732560665197,0.052543,95154.0,95153.0,0.413344]
[1732560665388,0.052548,95146.0,95145.0,0.3608]
[1732560665589,0.052548,95146.0,95145.0,0.413348]
[1732560665895,0.14665123,95146.0,95145.0,0.422348]
[1732560666091,0.09410323,95146.0,95145.0,0.422348]
[1732560666290,0.09410323,95153.0,95145.0,0.3698]
[1732560666597,0.0940389,95155.0,95146.0,0.3608]
[1732560666802,0.052542,95157.0,95156.0,0.052542]
[1732560666994,0.09404406,95161.0,95160.0,0.05254]
[1732560667193,0.052539,95163.0,95154.0,0.51428]
[1732560667401,0.052539,95163.0,95162.0,0.052539]
[1732560667793,0.052539,95163.0,95154.0,0.51428]
[1732560667794,0.15642956,95169.0,95154.0,0.51428]
[1732560667995,0.09407519,95157.0,95154.0,0.51428]
[1732560668195,0.052538,95163.0,95162.0,0.052539]